[Event "*** Titled Tuesday Blitz"]
[Site "Chess.com"]
[Date "2020.04.28"]
[Round "9"]
[White "enriquetejedor"]
[Black "ljuks68"]
[Result "0-1"]
[WhiteElo "2489"]
[BlackElo "2369"]
[TimeControl "180+1"]
[EndTime "11:46:44 PDT"]
[Termination "ljuks68 won by resignation"]

1. e4 {[%clk 0:03:00.9]} 1... e6 {[%clk 0:02:57.7]} 2. d4 {[%clk 0:03:00.9]}
2... d5 {[%clk 0:02:57.1]} 3. Nc3 {[%clk 0:03:01.8]} 3... Bb4 {[%clk 0:02:56.6]}
4. e5 {[%clk 0:02:59.4]} 4... Ne7 {[%clk 0:02:56.5]} 5. a3 {[%clk 0:02:54]} 5...
Bxc3+ {[%clk 0:02:56.3]} 6. bxc3 {[%clk 0:02:54.9]} 6... c5 {[%clk 0:02:56.5]}
7. Qg4 {[%clk 0:02:53.8]} 7... Qc7 {[%clk 0:02:55.7]} 8. Qxg7 {[%clk 0:02:53.2]}
8... Rg8 {[%clk 0:02:56.1]} 9. Qxh7 {[%clk 0:02:53.6]} 9... cxd4 {[%clk
0:02:56.6]} 10. Ne2 {[%clk 0:02:53.4]} 10... Nbc6 {[%clk 0:02:56.9]} 11. f4
{[%clk 0:02:49.5]} 11... Bd7 {[%clk 0:02:53]} 12. Qd3 {[%clk 0:02:44.3]} 12...
dxc3 {[%clk 0:02:52.4]} 13. h4 {[%clk 0:02:41.8]} 13... O-O-O {[%clk 0:02:47.1]}
14. h5 {[%clk 0:02:39]} 14... d4 {[%clk 0:02:46.9]} 15. h6 {[%clk 0:02:35.8]}
15... Rg6 {[%clk 0:02:45.1]} 16. h7 {[%clk 0:02:34.9]} 16... Rh8 {[%clk
0:02:41.8]} 17. Rb1 {[%clk 0:02:34.6]} 17... Nf5 {[%clk 0:02:38.3]} 18. g3
{[%clk 0:02:30.8]} 18... f6 {[%clk 0:02:11.1]} 19. exf6 {[%clk 0:02:16.3]} 19...
e5 {[%clk 0:02:05.5]} 20. f7 {[%clk 0:01:53]} 20... Rf6 {[%clk 0:01:52.5]} 21.
g4 {[%clk 0:01:51.2]} 21... Nfe7 {[%clk 0:01:52]} 22. f5 {[%clk 0:01:38.5]}
22... Rxf7 {[%clk 0:01:49]} 23. Bg2 {[%clk 0:01:22.6]} 23... Rfxh7 {[%clk
0:01:48.1]} 24. Rxh7 {[%clk 0:01:21.3]} 24... Rxh7 {[%clk 0:01:48.2]} 25. f6
{[%clk 0:01:21.4]} 25... Rh2 {[%clk 0:01:47.9]} 26. Qg3 {[%clk 0:01:20.5]} 26...
Rxg2 {[%clk 0:01:40.7]} 27. Qxg2 {[%clk 0:01:18.6]} 27... Ng6 {[%clk 0:01:40.3]}
28. Qd5 {[%clk 0:01:11.9]} 28... Be8 {[%clk 0:01:18.8]} 29. Bh6 {[%clk
0:00:58.3]} 29... Bf7 {[%clk 0:01:18.1]} 30. Qc5 {[%clk 0:00:54.7]} 30... Qd7
{[%clk 0:01:13.5]} 31. Nxd4 {[%clk 0:00:20]} 31... exd4 {[%clk 0:00:53.9]} 32.
Qf5 {[%clk 0:00:18.8]} 32... Qxf5 {[%clk 0:00:43.7]} 33. gxf5 {[%clk 0:00:19.7]}
33... Nh4 {[%clk 0:00:43.4]} 34. Rb5 {[%clk 0:00:13.1]} 34... a6 {[%clk
0:00:33.9]} 35. Rc5 {[%clk 0:00:06.6]} 35... Kd7 {[%clk 0:00:31.1]} 36. Kf2
{[%clk 0:00:03]} 36... b6 {[%clk 0:00:30.4]} 37. Rxc6 {[%clk 0:00:02]} 37...
Kxc6 {[%clk 0:00:29.8]} 38. Bf8 {[%clk 0:00:01.7]} 38... Nxf5 {[%clk 0:00:26.4]}
39. Kf3 {[%clk 0:00:02.6]} 39... d3 {[%clk 0:00:21.4]} 40. cxd3 {[%clk
0:00:01.7]} 40... c2 {[%clk 0:00:21.1]} 41. Kf4 {[%clk 0:00:01.5]} 41... c1=Q+
{[%clk 0:00:20.5]} 42. Kxf5 {[%clk 0:00:01.8]} 42... Qf1+ {[%clk 0:00:20.2]} 43.
Ke5 {[%clk 0:00:01.9]} 43... Qxd3 {[%clk 0:00:19.9]} 44. Be7 {[%clk 0:00:02.3]}
44... Qd5+ {[%clk 0:00:18.8]} 45. Kf4 {[%clk 0:00:02.5]} 45... Qd4+ {[%clk
0:00:18.4]} 0-1

[Event "*** Titled Tuesday Blitz"]
[Site "Chess.com"]
[Date "2020.04.28"]
[Round "9"]
[White "Ghost_Pepper"]
[Black "Andro2"]
[Result "1-0"]
[WhiteElo "2292"]
[BlackElo "2422"]
[TimeControl "180+1"]
[EndTime "11:46:44 PDT"]
[Termination "Ghost_Pepper won on time"]

1. e4 {[%clk 0:03:00.8]} 1... c6 {[%clk 0:02:58.2]} 2. d4 {[%clk 0:03:00.9]}
2... d5 {[%clk 0:02:58.7]} 3. Nc3 {[%clk 0:03:01.5]} 3... dxe4 {[%clk
0:02:58.2]} 4. Nxe4 {[%clk 0:03:02.4]} 4... Bf5 {[%clk 0:02:58.3]} 5. Ng3 {[%clk
0:03:03]} 5... Bg6 {[%clk 0:02:58.8]} 6. h4 {[%clk 0:03:03.7]} 6... h6 {[%clk
0:02:58.8]} 7. Nf3 {[%clk 0:03:03]} 7... Nd7 {[%clk 0:02:58.7]} 8. h5 {[%clk
0:03:03.5]} 8... Bh7 {[%clk 0:02:58.9]} 9. Bd3 {[%clk 0:03:04.3]} 9... Bxd3
{[%clk 0:02:59.4]} 10. Qxd3 {[%clk 0:03:05.2]} 10... e6 {[%clk 0:02:59.9]} 11.
Bd2 {[%clk 0:03:05.9]} 11... Ngf6 {[%clk 0:03:00]} 12. O-O-O {[%clk 0:03:06.3]}
12... a5 {[%clk 0:03:00.5]} 13. Kb1 {[%clk 0:03:05.2]} 13... Bb4 {[%clk
0:03:00.2]} 14. c3 {[%clk 0:02:52.2]} 14... Be7 {[%clk 0:02:59.4]} 15. Rde1
{[%clk 0:02:38.4]} 15... a4 {[%clk 0:02:54.7]} 16. Ne4 {[%clk 0:02:23.4]} 16...
Nxe4 {[%clk 0:02:40.5]} 17. Qxe4 {[%clk 0:02:24.3]} 17... Nf6 {[%clk 0:02:40.7]}
18. Qe2 {[%clk 0:02:24]} 18... Qd5 {[%clk 0:01:59.2]} 19. Ne5 {[%clk 0:02:22.9]}
19... a3 {[%clk 0:01:49.5]} 20. b3 {[%clk 0:02:01]} 20... Nd7 {[%clk 0:01:31.7]}
21. f3 {[%clk 0:01:34]} 21... c5 {[%clk 0:00:57.9]} 22. Nxd7 {[%clk 0:01:27.5]}
22... Qxd7 {[%clk 0:00:50.6]} 23. Be3 {[%clk 0:01:22.5]} 23... Bf6 {[%clk
0:00:46.9]} 24. Rd1 {[%clk 0:01:18]} 24... cxd4 {[%clk 0:00:42]} 25. Bxd4 {[%clk
0:01:16.7]} 25... Bxd4 {[%clk 0:00:40.7]} 26. Rxd4 {[%clk 0:01:17.5]} 26... Qc6
{[%clk 0:00:38.3]} 27. Rc4 {[%clk 0:00:59.1]} 27... Qd5 {[%clk 0:00:29.3]} 28.
g4 {[%clk 0:00:58.8]} 28... O-O {[%clk 0:00:28.1]} 29. Rd1 {[%clk 0:00:54.5]}
29... Qg5 {[%clk 0:00:27.1]} 30. Rcd4 {[%clk 0:00:45.4]} 30... Rfc8 {[%clk
0:00:19.7]} 31. f4 {[%clk 0:00:42.1]} 31... Qf6 {[%clk 0:00:17.9]} 32. c4 {[%clk
0:00:40.7]} 32... Rd8 {[%clk 0:00:14.3]} 33. Qe4 {[%clk 0:00:34]} 33... Rxd4
{[%clk 0:00:12.9]} 34. Qxd4 {[%clk 0:00:33.9]} 34... Qe7 {[%clk 0:00:12.9]} 35.
Kc2 {[%clk 0:00:33.7]} 35... Rc8 {[%clk 0:00:11.9]} 36. Qe5 {[%clk 0:00:32]}
36... Qb4 {[%clk 0:00:08.8]} 37. g5 {[%clk 0:00:24.8]} 37... hxg5 {[%clk
0:00:07.6]} 38. fxg5 {[%clk 0:00:23]} 38... b5 {[%clk 0:00:07.5]} 39. h6 {[%clk
0:00:23.3]} 39... Qf8 {[%clk 0:00:07.9]} 40. Rd7 {[%clk 0:00:17.7]} 40... bxc4
{[%clk 0:00:06.3]} 41. g6 {[%clk 0:00:18.1]} 41... cxb3+ {[%clk 0:00:05.3]} 42.
Kxb3 {[%clk 0:00:17.9]} 42... Rb8+ {[%clk 0:00:04.4]} 43. Kc2 {[%clk 0:00:18.1]}
43... Qc8+ {[%clk 0:00:04.9]} 44. Rc7 {[%clk 0:00:17.8]} 44... Qf8 {[%clk
0:00:02.3]} 45. gxf7+ {[%clk 0:00:18.1]} 1-0

[Event "*** Titled Tuesday Blitz"]
[Site "Chess.com"]
[Date "2020.04.28"]
[Round "9"]
[White "jaskol95"]
[Black "uchenic"]
[Result "0-1"]
[WhiteElo "2285"]
[BlackElo "2467"]
[TimeControl "180+1"]
[EndTime "11:46:45 PDT"]
[Termination "uchenic won by checkmate"]

1. e4 {[%clk 0:03:00.9]} 1... e6 {[%clk 0:03:00.1]} 2. d4 {[%clk 0:02:59.3]}
2... d5 {[%clk 0:03:00.2]} 3. Nd2 {[%clk 0:02:59.4]} 3... Nf6 {[%clk 0:02:59.7]}
4. e5 {[%clk 0:02:59.6]} 4... Nfd7 {[%clk 0:02:59.5]} 5. Bd3 {[%clk 0:02:52.6]}
5... c5 {[%clk 0:02:59.5]} 6. c3 {[%clk 0:02:52.9]} 6... Nc6 {[%clk 0:02:59.6]}
7. Ne2 {[%clk 0:02:51.6]} 7... cxd4 {[%clk 0:02:59.7]} 8. cxd4 {[%clk
0:02:52.5]} 8... f6 {[%clk 0:03:00.1]} 9. Nf4 {[%clk 0:02:47]} 9... Nxd4 {[%clk
0:02:59]} 10. Qh5+ {[%clk 0:02:46.4]} 10... Ke7 {[%clk 0:02:59.2]} 11. exf6+
{[%clk 0:02:44.5]} 11... Nxf6 {[%clk 0:02:58.8]} 12. Ng6+ {[%clk 0:02:44.4]}
12... hxg6 {[%clk 0:02:58.9]} 13. Qxh8 {[%clk 0:02:45.3]} 13... Kf7 {[%clk
0:02:58.6]} 14. O-O {[%clk 0:02:43.6]} 14... e5 {[%clk 0:02:58.1]} 15. Nb3
{[%clk 0:02:41.1]} 15... Nxb3 {[%clk 0:02:36]} 16. axb3 {[%clk 0:02:42]} 16...
e4 {[%clk 0:02:35.9]} 17. Be2 {[%clk 0:02:37.5]} 17... Be6 {[%clk 0:02:34.3]}
18. Bg5 {[%clk 0:02:21.9]} 18... d4 {[%clk 0:02:28.4]} 19. Bc4 {[%clk
0:02:11.4]} 19... Bxc4 {[%clk 0:02:24.5]} 20. bxc4 {[%clk 0:02:12.3]} 20... Qc7
{[%clk 0:02:11.6]} 21. Rfd1 {[%clk 0:01:52.8]} 21... d3 {[%clk 0:02:03.6]} 22.
Be3 {[%clk 0:01:39.5]} 22... a6 {[%clk 0:01:59.5]} 23. f3 {[%clk 0:01:26.4]}
23... Re8 {[%clk 0:01:52.3]} 24. fxe4 {[%clk 0:01:22.4]} 24... Rxe4 {[%clk
0:01:51.7]} 25. Bf2 {[%clk 0:01:02.1]} 25... Bc5 {[%clk 0:01:35.5]} 26. Bxc5
{[%clk 0:00:55.9]} 26... Qxc5+ {[%clk 0:01:35]} 27. Kh1 {[%clk 0:00:56.6]} 27...
Qxc4 {[%clk 0:01:07.9]} 28. h3 {[%clk 0:00:49.2]} 28... Re2 {[%clk 0:01:03.5]}
29. Rac1 {[%clk 0:00:32.6]} 29... Rc2 {[%clk 0:01:02.5]} 30. Rxc2 {[%clk
0:00:21]} 30... dxc2 {[%clk 0:00:53.7]} 31. Rc1 {[%clk 0:00:20.7]} 31... Qd3
{[%clk 0:00:52.8]} 32. Qh4 {[%clk 0:00:18.7]} 32... Ne4 {[%clk 0:00:29.4]} 33.
Re1 {[%clk 0:00:14.7]} 33... Ng3+ {[%clk 0:00:25.2]} 34. Kh2 {[%clk 0:00:14.8]}
34... Nf1+ {[%clk 0:00:25.1]} 35. Kh1 {[%clk 0:00:07.2]} 35... Ng3+ {[%clk
0:00:22.2]} 36. Kh2 {[%clk 0:00:07.5]} 36... Ne2 {[%clk 0:00:20.8]} 37. Qf2+
{[%clk 0:00:07.5]} 37... Kg8 {[%clk 0:00:20.9]} 38. Rxe2 {[%clk 0:00:04.4]}
38... c1=Q {[%clk 0:00:17.5]} 39. Re8+ {[%clk 0:00:04]} 39... Kh7 {[%clk
0:00:17.7]} 40. Qh4+ {[%clk 0:00:04.6]} 40... Qh6 {[%clk 0:00:17.5]} 41. Qg3
{[%clk 0:00:03.9]} 41... Qxg3+ {[%clk 0:00:16.8]} 42. Kxg3 {[%clk 0:00:04.8]}
42... Qg5+ {[%clk 0:00:17.3]} 43. Kf3 {[%clk 0:00:05.2]} 43... Qd5+ {[%clk
0:00:16.9]} 44. Kg3 {[%clk 0:00:04.9]} 44... Qd3+ {[%clk 0:00:16]} 45. Kh4
{[%clk 0:00:04.2]} 45... Qd4+ {[%clk 0:00:15.6]} 46. g4 {[%clk 0:00:04.8]} 46...
Qxb2 {[%clk 0:00:15.3]} 47. Kg5 {[%clk 0:00:05.7]} 47... Qc1+ {[%clk 0:00:14.6]}
48. Kh4 {[%clk 0:00:05.8]} 48... Qc6 {[%clk 0:00:14.6]} 49. Re5 {[%clk
0:00:04.2]} 49... Qf6+ {[%clk 0:00:13.6]} 50. Rg5 {[%clk 0:00:01.6]} 50... Qf2#
{[%clk 0:00:13.2]} 0-1

[Event "*** Titled Tuesday Blitz"]
[Site "Chess.com"]
[Date "2020.04.28"]
[Round "9"]
[White "benko_008"]
[Black "SummertimeFun"]
[Result "1-0"]
[WhiteElo "2495"]
[BlackElo "2288"]
[TimeControl "180+1"]
[EndTime "11:46:47 PDT"]
[Termination "benko_008 won on time"]

1. Nf3 {[%clk 0:03:00.9]} 1... Nf6 {[%clk 0:02:58.5]} 2. c4 {[%clk 0:03:00.4]}
2... b6 {[%clk 0:02:57.6]} 3. Nc3 {[%clk 0:03:00]} 3... Bb7 {[%clk 0:02:58.1]}
4. e3 {[%clk 0:02:59.7]} 4... e6 {[%clk 0:02:58.6]} 5. d4 {[%clk 0:02:58.2]}
5... Be7 {[%clk 0:02:59]} 6. Bd3 {[%clk 0:02:58]} 6... O-O {[%clk 0:02:59.1]} 7.
e4 {[%clk 0:02:55.9]} 7... d6 {[%clk 0:02:59.2]} 8. e5 {[%clk 0:02:48.2]} 8...
Nfd7 {[%clk 0:02:53.3]} 9. exd6 {[%clk 0:02:42.8]} 9... Bxd6 {[%clk 0:02:43.1]}
10. O-O {[%clk 0:02:32.9]} 10... c5 {[%clk 0:02:42]} 11. Ne4 {[%clk 0:02:30.5]}
11... Be7 {[%clk 0:02:40.2]} 12. dxc5 {[%clk 0:02:15.9]} 12... Nxc5 {[%clk
0:02:38.2]} 13. Nxc5 {[%clk 0:02:14.9]} 13... Bxc5 {[%clk 0:02:39.1]} 14. Ng5
{[%clk 0:02:03.9]} 14... g6 {[%clk 0:02:16.9]} 15. Nxh7 {[%clk 0:01:37.5]} 15...
Kxh7 {[%clk 0:02:08.5]} 16. Qh5+ {[%clk 0:01:36.2]} 16... Kg8 {[%clk 0:02:00.5]}
17. Bxg6 {[%clk 0:01:35.3]} 17... fxg6 {[%clk 0:02:00.7]} 18. Qxg6+ {[%clk
0:01:35.4]} 18... Kh8 {[%clk 0:02:01.2]} 19. Qh6+ {[%clk 0:01:30.1]} 19... Kg8
{[%clk 0:02:01.1]} 20. Qxe6+ {[%clk 0:01:29.6]} 20... Rf7 {[%clk 0:01:51.7]} 21.
Bh6 {[%clk 0:01:20.3]} 21... Qf6 {[%clk 0:01:27.4]} 22. Qg4+ {[%clk 0:01:07.7]}
22... Kh7 {[%clk 0:01:23.1]} 23. Bg5 {[%clk 0:01:03.3]} 23... Qg6 {[%clk
0:01:14.2]} 24. Rae1 {[%clk 0:00:53.5]} 24... Nd7 {[%clk 0:01:07.8]} 25. Re6
{[%clk 0:00:41.4]} 25... Qg7 {[%clk 0:00:33.6]} 26. Rh6+ {[%clk 0:00:34]} 26...
Kg8 {[%clk 0:00:33.4]} 27. Qh5 {[%clk 0:00:31.5]} 27... Raf8 {[%clk 0:00:20]}
28. Rg6 {[%clk 0:00:25.2]} 28... Qxg6 {[%clk 0:00:16]} 29. Qxg6+ {[%clk
0:00:24.5]} 29... Rg7 {[%clk 0:00:16.6]} 30. Qe6+ {[%clk 0:00:23.2]} 30... Kh7
{[%clk 0:00:17]} 31. h4 {[%clk 0:00:23.2]} 31... Rff7 {[%clk 0:00:09.3]} 32.
Qh6+ {[%clk 0:00:18.7]} 32... Kg8 {[%clk 0:00:08.4]} 33. Qe6 {[%clk 0:00:18.4]}
33... Nf6 {[%clk 0:00:07.1]} 34. Kh2 {[%clk 0:00:16]} 34... Nh5 {[%clk
0:00:05.2]} 35. f3 {[%clk 0:00:14.6]} 35... Nf4 {[%clk 0:00:02.3]} 36. Bxf4
{[%clk 0:00:13.3]} 36... Kh8 {[%clk 0:00:01.7]} 37. Be5 {[%clk 0:00:11.8]} 37...
Kh7 {[%clk 0:00:01.1]} 38. Bxg7 {[%clk 0:00:10.7]} 38... Rxg7 {[%clk 0:00:02]}
39. Qf5+ {[%clk 0:00:08.9]} 39... Kg8 {[%clk 0:00:02.4]} 40. Re1 {[%clk
0:00:07]} 40... Bd6+ {[%clk 0:00:02.1]} 41. Kg1 {[%clk 0:00:07.1]} 41... Bc5+
{[%clk 0:00:02.1]} 42. Kf1 {[%clk 0:00:07.1]} 42... Ba6 {[%clk 0:00:02.5]} 43.
Re8+ {[%clk 0:00:06.5]} 1-0

[Event "*** Titled Tuesday Blitz"]
[Site "Chess.com"]
[Date "2020.04.28"]
[Round "9"]
[White "StockholmMissile"]
[Black "GiorgianBarbosa"]
[Result "1-0"]
[WhiteElo "2462"]
[BlackElo "2312"]
[TimeControl "180+1"]
[EndTime "11:46:47 PDT"]
[Termination "StockholmMissile won on time"]

1. d4 {[%clk 0:03:00.9]} 1... Nf6 {[%clk 0:02:59.1]} 2. Bg5 {[%clk 0:02:59.7]}
2... e6 {[%clk 0:03:00]} 3. e4 {[%clk 0:02:58.9]} 3... h6 {[%clk 0:02:58.7]} 4.
Bxf6 {[%clk 0:02:58.6]} 4... Qxf6 {[%clk 0:02:59.6]} 5. c3 {[%clk 0:02:58.8]}
5... d6 {[%clk 0:02:59.2]} 6. Nf3 {[%clk 0:02:55.6]} 6... e5 {[%clk 0:02:58.2]}
7. Nbd2 {[%clk 0:02:53.1]} 7... Bg4 {[%clk 0:02:55.2]} 8. Qb3 {[%clk 0:02:47.6]}
8... b6 {[%clk 0:02:32]} 9. dxe5 {[%clk 0:02:42.5]} 9... dxe5 {[%clk 0:02:30.2]}
10. Qb5+ {[%clk 0:02:42.2]} 10... Nd7 {[%clk 0:02:27.7]} 11. Bc4 {[%clk
0:02:37]} 11... c6 {[%clk 0:02:21.2]} 12. Qb3 {[%clk 0:02:32.8]} 12... Nc5
{[%clk 0:02:13.4]} 13. Qc2 {[%clk 0:02:32.6]} 13... Be7 {[%clk 0:02:02.6]} 14.
O-O {[%clk 0:02:31.8]} 14... O-O {[%clk 0:02:02]} 15. h3 {[%clk 0:02:30.1]}
15... Be6 {[%clk 0:02:00.4]} 16. Be2 {[%clk 0:02:24.8]} 16... Rad8 {[%clk
0:01:51.2]} 17. b4 {[%clk 0:02:23.5]} 17... Nd7 {[%clk 0:01:50.6]} 18. a4 {[%clk
0:02:22.2]} 18... c5 {[%clk 0:01:47.3]} 19. b5 {[%clk 0:02:09.4]} 19... Rfe8
{[%clk 0:01:42]} 20. Nc4 {[%clk 0:02:04.6]} 20... Bxc4 {[%clk 0:01:13.1]} 21.
Bxc4 {[%clk 0:02:02.2]} 21... Nf8 {[%clk 0:01:13.7]} 22. a5 {[%clk 0:02:01.5]}
22... Ng6 {[%clk 0:01:09.2]} 23. axb6 {[%clk 0:01:59.1]} 23... axb6 {[%clk
0:01:10.1]} 24. Rfd1 {[%clk 0:01:48.9]} 24... Nf4 {[%clk 0:01:06.5]} 25. Bf1
{[%clk 0:01:48.7]} 25... c4 {[%clk 0:00:58.2]} 26. Kh2 {[%clk 0:01:35.4]} 26...
Qg6 {[%clk 0:00:47.7]} 27. g3 {[%clk 0:01:31.9]} 27... Qh5 {[%clk 0:00:42.8]}
28. Nd2 {[%clk 0:01:19.9]} 28... Nd3 {[%clk 0:00:39.4]} 29. Nxc4 {[%clk
0:01:18.8]} 29... Nc5 {[%clk 0:00:26.9]} 30. Bg2 {[%clk 0:01:02]} 30... Bg5
{[%clk 0:00:19.8]} 31. Nxb6 {[%clk 0:00:59.1]} 31... Qg6 {[%clk 0:00:17.3]} 32.
Nc4 {[%clk 0:00:50.5]} 32... Qe6 {[%clk 0:00:16.8]} 33. Qe2 {[%clk 0:00:47.8]}
33... Nb3 {[%clk 0:00:10.3]} 34. Ra6 {[%clk 0:00:44.3]} 34... Qc8 {[%clk
0:00:07.7]} 35. Rc6 {[%clk 0:00:43]} 35... Qb8 {[%clk 0:00:07.3]} 36. Rxd8
{[%clk 0:00:38.7]} 36... Rxd8 {[%clk 0:00:07]} 37. b6 {[%clk 0:00:36.2]} 37...
Be7 {[%clk 0:00:05]} 38. Qa2 {[%clk 0:00:31.6]} 38... Nc5 {[%clk 0:00:04.7]} 39.
Qa7 {[%clk 0:00:27.6]} 39... Nd3 {[%clk 0:00:04.7]} 40. Qxb8 {[%clk 0:00:26.7]}
40... Rxb8 {[%clk 0:00:05.6]} 41. Nxe5 {[%clk 0:00:26.1]} 41... Nxe5 {[%clk
0:00:04.8]} 42. Rc7 {[%clk 0:00:26.3]} 42... Bd6 {[%clk 0:00:03.4]} 43. Ra7
{[%clk 0:00:26.5]} 43... Rxb6 {[%clk 0:00:03.4]} 44. f4 {[%clk 0:00:27]} 44...
Nc4 {[%clk 0:00:03.1]} 45. e5 {[%clk 0:00:26.8]} 45... Bf8 {[%clk 0:00:03.9]}
46. Bd5 {[%clk 0:00:25.8]} 46... Rb2+ {[%clk 0:00:04.2]} 47. Kg1 {[%clk
0:00:25.6]} 47... Ne3 {[%clk 0:00:05.1]} 48. Bxf7+ {[%clk 0:00:24.8]} 48... Kh8
{[%clk 0:00:05.8]} 49. Ra8 {[%clk 0:00:24.2]} 1-0

[Event "*** Titled Tuesday Blitz"]
[Site "Chess.com"]
[Date "2020.04.28"]
[Round "9"]
[White "Corpescador"]
[Black "nfds"]
[Result "1-0"]
[WhiteElo "2382"]
[BlackElo "2490"]
[TimeControl "180+1"]
[EndTime "11:46:48 PDT"]
[Termination "Corpescador won on time"]

1. e4 {[%clk 0:02:55.7]} 1... e5 {[%clk 0:02:57.8]} 2. Nf3 {[%clk 0:02:55.5]}
2... Nc6 {[%clk 0:02:57.6]} 3. Bb5 {[%clk 0:02:55.3]} 3... a6 {[%clk 0:02:56.4]}
4. Ba4 {[%clk 0:02:55.5]} 4... Nf6 {[%clk 0:02:56.1]} 5. O-O {[%clk 0:02:54.7]}
5... Nxe4 {[%clk 0:02:55.7]} 6. d4 {[%clk 0:02:53.9]} 6... b5 {[%clk 0:02:55.4]}
7. Bb3 {[%clk 0:02:53.8]} 7... d5 {[%clk 0:02:55.6]} 8. dxe5 {[%clk 0:02:52.5]}
8... Be6 {[%clk 0:02:56.1]} 9. Qe2 {[%clk 0:02:40.3]} 9... Bc5 {[%clk
0:02:42.5]} 10. Be3 {[%clk 0:02:32.8]} 10... Qe7 {[%clk 0:02:34.9]} 11. Rd1
{[%clk 0:02:22]} 11... Rd8 {[%clk 0:02:30.2]} 12. a4 {[%clk 0:02:21.4]} 12...
Bxe3 {[%clk 0:02:26.9]} 13. Qxe3 {[%clk 0:01:52]} 13... O-O {[%clk 0:02:22.1]}
14. Nc3 {[%clk 0:01:38.1]} 14... Nxc3 {[%clk 0:01:49.7]} 15. Qxc3 {[%clk
0:01:37.8]} 15... Nb4 {[%clk 0:01:46.4]} 16. axb5 {[%clk 0:01:34.1]} 16... axb5
{[%clk 0:01:47.3]} 17. Ra7 {[%clk 0:01:33]} 17... Rd7 {[%clk 0:01:35.7]} 18. Rb7
{[%clk 0:01:01.7]} 18... c6 {[%clk 0:01:16.8]} 19. Rxd7 {[%clk 0:00:53.9]} 19...
Bxd7 {[%clk 0:01:17.7]} 20. h3 {[%clk 0:00:53.2]} 20... Na6 {[%clk 0:00:51]} 21.
Ba2 {[%clk 0:00:40.6]} 21... Nc5 {[%clk 0:00:46.2]} 22. Qe3 {[%clk 0:00:37.9]}
22... Ne4 {[%clk 0:00:33.2]} 23. c3 {[%clk 0:00:29.2]} 23... Ra8 {[%clk
0:00:24.5]} 24. Bb1 {[%clk 0:00:28.5]} 24... Ra1 {[%clk 0:00:24.3]} 25. Kh2
{[%clk 0:00:26]} 25... f5 {[%clk 0:00:22.4]} 26. exf6 {[%clk 0:00:23.6]} 26...
Qxf6 {[%clk 0:00:22.2]} 27. Bc2 {[%clk 0:00:15.5]} 27... Qd6+ {[%clk 0:00:20.9]}
28. g3 {[%clk 0:00:15.1]} 28... Rxd1 {[%clk 0:00:18.9]} 29. Bxd1 {[%clk
0:00:14.7]} 29... Qe6 {[%clk 0:00:18.1]} 30. Ng1 {[%clk 0:00:14.2]} 30... Qf5
{[%clk 0:00:16.6]} 31. Bg4 {[%clk 0:00:13]} 31... Qf7 {[%clk 0:00:14.8]} 32. Bf3
{[%clk 0:00:13]} 32... Nf6 {[%clk 0:00:12.2]} 33. Kg2 {[%clk 0:00:12.8]} 33...
Bf5 {[%clk 0:00:11.9]} 34. g4 {[%clk 0:00:12.2]} 34... Be4 {[%clk 0:00:11.7]}
35. Qc5 {[%clk 0:00:12.3]} 35... h5 {[%clk 0:00:10.3]} 36. Qxc6 {[%clk
0:00:11.8]} 36... hxg4 {[%clk 0:00:10.1]} 37. hxg4 {[%clk 0:00:12.2]} 37... Nxg4
{[%clk 0:00:07.7]} 38. Qc8+ {[%clk 0:00:12.3]} 38... Kh7 {[%clk 0:00:05.8]} 39.
Qxg4 {[%clk 0:00:12.2]} 39... Bf5 {[%clk 0:00:04.1]} 40. Qg3 {[%clk 0:00:11.9]}
40... Be6 {[%clk 0:00:03.2]} 41. Nh3 {[%clk 0:00:12]} 41... Qf6 {[%clk
0:00:02.8]} 42. Ng5+ {[%clk 0:00:12.2]} 42... Kg8 {[%clk 0:00:03.2]} 43. Nxe6
{[%clk 0:00:12.6]} 43... Qxe6 {[%clk 0:00:04.1]} 44. Qg5 {[%clk 0:00:12.5]}
44... Kf8 {[%clk 0:00:03.2]} 45. Bxd5 {[%clk 0:00:12.5]} 45... Qd6 {[%clk
0:00:03.6]} 46. Qf5+ {[%clk 0:00:12.5]} 46... Ke7 {[%clk 0:00:03.1]} 47. Qf7+
{[%clk 0:00:12.6]} 47... Kd8 {[%clk 0:00:03.6]} 48. Qg8+ {[%clk 0:00:12.9]}
48... Kc7 {[%clk 0:00:03.7]} 49. Qxg7+ {[%clk 0:00:13.1]} 49... Kb6 {[%clk
0:00:03.8]} 50. Qb7+ {[%clk 0:00:13.1]} 50... Ka5 {[%clk 0:00:03.4]} 51. Qa7+
{[%clk 0:00:13.1]} 1-0